fUST/lending_fUST_20260206
["ID","MTS","AMOUNT","RATE_DAILY","PERIOD"]
[404647167,1770376246507,-250.0,0.00025861,2]
[404647168,1770376246517,-250.0,0.00025861,2]
[404647169,1770376246527,-500.0,0.00025861,2]
[404647170,1770376246537,-500.0,0.00025861,2]
[404647171,1770376246548,-250.0,0.00025861,2]
[404647172,1770376246558,-250.0,0.00025861,2]
[404647173,1770376246571,-250.0,0.00025861,2]
[404647174,1770376246581,-500.0,0.00025861,2]
[404647175,1770376246592,-250.0,0.00025861,2]
[404647176,1770376246603,-250.0,0.00025861,2]
[404647177,1770376246613,-250.0,0.00025861,2]
[404647178,1770376246623,-250.0,0.00025861,2]
[404647179,1770376246634,-500.0,0.00025861,2]
[404647180,1770376246644,-250.0,0.00025861,2]
[404647181,1770376246654,-250.0,0.00025861,2]
[404647182,1770376246664,-250.0,0.00025861,2]
[404647183,1770376246675,-250.0,0.00025861,2]
[404647184,1770376246685,-500.0,0.00025861,2]
[404647185,1770376246695,-250.0,0.00025861,2]
[404647186,1770376246704,-500.0,0.00025861,2]
[404647187,1770376246714,-250.0,0.00025861,2]
[404647188,1770376246724,-250.0,0.00025861,2]
[404647189,1770376246734,-500.0,0.00025861,2]
[404647190,1770376246744,-500.0,0.00025861,2]
[404647191,1770376246756,-500.0,0.00025861,2]
[404647192,1770376246767,-250.0,0.00025861,2]
[404647193,1770376246778,-250.0,0.00025861,2]
[404647194,1770376246788,-500.0,0.00025861,2]
[404647195,1770376246802,-500.0,0.00025861,2]
[404647196,1770376246813,-500.0,0.00025861,2]
[404647197,1770376246823,-250.0,0.00025861,2]
[404647198,1770376246834,-500.0,0.00025861,2]
[404647199,1770376246844,-250.0,0.00025861,2]
[404647200,1770376246854,-500.0,0.00025861,2]
[404647201,1770376246865,-500.0,0.00025861,2]
[404647202,1770376246875,-250.0,0.00025861,2]
[404647203,1770376246884,-250.0,0.00025861,2]
[404647204,1770376246895,-500.0,0.00025861,2]
[404647205,1770376246905,-500.0,0.00025861,2]
[404647206,1770376246915,-250.0,0.00025861,2]
[404647207,1770376246925,-250.0,0.00025861,2]
[404647208,1770376246935,-500.0,0.00025861,2]
[404647209,1770376246945,-500.0,0.00025861,2]
[404647210,1770376246955,-250.0,0.00025861,2]
[404647211,1770376246964,-250.0,0.00025861,2]
[404647212,1770376246974,-500.0,0.00025861,2]
[404647213,1770376246984,-250.0,0.00025861,2]
[404647214,1770376246994,-500.0,0.00025861,2]
[404647215,1770376247004,-250.0,0.00025861,2]
[404647216,1770376247013,-500.0,0.00025861,2]
[404647217,1770376247023,-250.0,0.00025861,2]
[404647218,1770376247034,-500.0,0.00025861,2]
[404647219,1770376247044,-250.0,0.00025861,2]
[404647220,1770376247053,-500.0,0.00025861,2]
[404647221,1770376247066,-250.0,0.00025861,2]
[404647222,1770376247076,-250.0,0.00025861,2]
[404647223,1770376247086,-250.0,0.00025861,2]
[404647224,1770376247096,-250.0,0.00025861,2]
[404647225,1770376247106,-179.511713,0.00026045,7]
[404647226,1770376247117,-179.511713,0.00026045,7]
[404647227,1770376247127,-179.511713,0.00026045,7]
[404647228,1770376247141,-179.511713,0.00026045,7]
[404647229,1770376247151,-21093.5480268,0.00026045,2]
[404647230,1770376247161,-679.59,0.00026051,3]
[404647231,1770376247170,-179.511713,0.00026055,7]
[404647232,1770376247180,-179.511713,0.00026055,7]
[404647233,1770376247190,-179.511713,0.00026055,7]
[404647234,1770376247200,-179.511713,0.00026055,7]
[404647235,1770376247210,-556.05640422,0.00026055,2]
[404647236,1770376247220,-28.85907141,0.00026061,2]
[404647237,1770376247241,-16155.861886,0.00026061,2]
[404647289,1770377310902,216.48211928,0.00016,2]
[404647292,1770377331614,932.56148463,0.00022352,2]
[404647293,1770377334622,681.97672806,0.00022344,2]
[404647334,1770377431992,-150.0,0.00023173,2]
[404647337,1770377432002,-300.0,0.00023495,2]
[404647338,1770377432011,-300.0,0.00023495,2]
[404647341,1770377432020,-300.0,0.00023495,2]
[404647342,1770377432030,-300.0,0.00023495,2]
[404647345,1770377432039,-1200.0,0.00023495,2]
[404647347,1770377432050,-944.90085194,0.00023496,2]
[404647349,1770377432062,-2221.3362772,0.00023496,2]
[404647351,1770377432077,-2565.10889737,0.00023496,2]
[404647353,1770377432088,-477.93985686,0.00023496,2]
[404647356,1770377432100,-1578.9641383,0.00023496,2]
[404647358,1770377432111,-2211.74997833,0.00023496,2]
[404647360,1770377432121,-1916.0162703,0.0002352,2]
[404647362,1770377432130,-238.08974942,0.0002352,2]
[404647364,1770377432140,-893.4082773,0.00023528,2]
[404647366,1770377432149,-1492.52762145,0.00023528,2]
[404647405,1770377438056,-95.75376042,0.00023528,2]
[404647407,1770377438065,-2481.68965917,0.00023528,2]
[404647409,1770377438075,-328.73939609,0.00023528,2]
[404647411,1770377438087,-375.32646479,0.00023528,2]
[404647413,1770377438098,-1207.57188422,0.00023893,2]
[404647415,1770377438108,-5256.50087469,0.00023893,2]
[404647417,1770377438117,-170.6045,0.0002393,2]
[404647419,1770377438129,-170.6045,0.00024349,2]
[404647421,1770377438138,-250.26,0.00024625,2]
[404647423,1770377438148,-1000.0,0.00024731,30]
[404647424,1770377438157,-250.0,0.00024763,2]
[404647426,1770377438166,-250.0,0.00024763,2]
[404647428,1770377438176,-250.0,0.00024763,2]
[404647429,1770377438186,-250.0,0.00024763,2]
[404647430,1770377438195,-250.0,0.00024763,2]
[404647431,1770377438205,-250.0,0.00024763,2]
[404647432,1770377438214,-250.0,0.00024763,2]
[404647433,1770377438224,-250.0,0.00024763,2]
[404647434,1770377438234,-250.0,0.00024763,2]
[404647435,1770377438243,-250.0,0.00024763,2]
[404647436,1770377438254,-250.0,0.00024763,2]
[404647437,1770377438263,-250.0,0.00024763,2]
[404647438,1770377438273,-250.0,0.00024763,2]
[404647439,1770377438283,-250.0,0.00024763,2]
[404647440,1770377438292,-250.0,0.00024763,2]
[404647441,1770377438301,-250.0,0.00024763,2]
[404647442,1770377438311,-250.0,0.00024763,2]
[404647443,1770377438320,-250.0,0.00024763,2]
[404647444,1770377438329,-250.0,0.00024763,2]
[404647445,1770377438340,-250.0,0.00024763,2]
[404647446,1770377438349,-250.0,0.00024763,2]
[404647447,1770377438359,-250.0,0.00024763,2]
[404647448,1770377438369,-250.0,0.00024763,2]
[404647449,1770377438379,-250.0,0.00024763,2]
[404647450,1770377438387,-250.0,0.00024763,2]
[404647451,1770377438396,-250.0,0.00024763,2]
[404647452,1770377438405,-250.0,0.00024763,2]
[404647453,1770377438415,-250.0,0.00024763,2]
[404647454,1770377438425,-250.0,0.00024763,2]
[404647455,1770377438434,-250.0,0.00024763,2]
[404647456,1770377438443,-250.0,0.00024763,2]
[404647457,1770377438452,-250.0,0.00024763,2]
[404647458,1770377438462,-250.0,0.00024763,2]
[404647459,1770377438471,-378.6800003,0.00024763,2]
[404647460,1770377438490,-121.3199997,0.00024763,2]
[404647461,1770377438499,-250.0,0.00024763,2]
[404647462,1770377438509,-250.0,0.00024763,2]
[404647463,1770377438518,-500.0,0.00024763,2]
[404647464,1770377438527,-250.0,0.00024763,2]
[404647465,1770377438536,-500.0,0.00024763,2]
[404647466,1770377438546,-250.0,0.00024763,2]
[404647467,1770377438555,-500.0,0.00024763,2]
[404647468,1770377438565,-150.13596512,0.00024763,2]
[404648090,1770377462175,-99.86403488,0.00024763,2]
[404648091,1770377462202,-500.0,0.00024763,2]
[404648092,1770377462229,-250.0,0.00024763,2]
[404648093,1770377462247,-99.86403488,0.00024763,2]
[404648094,1770377462258,-400.13596512,0.00024763,2]
[404648095,1770377462267,-99.86403488,0.00024763,2]
[404648096,1770377462278,-150.13596512,0.00024763,2]
[404648097,1770377462287,-99.86403488,0.00024763,2]
[404648098,1770377462298,-400.13596512,0.00024763,2]
[404648099,1770377462308,-92.14344816,0.00024763,2]
[404648102,1770377522685,-300.0,0.00024762,2]
[404648103,1770377522714,-157.85655184,0.00024763,2]
[404648104,1770377522742,-500.0,0.00024763,2]
[404648105,1770377522769,-264.82857671,0.00024763,2]
[404648106,1770377522797,-500.0,0.00024763,2]
[404648107,1770377522824,-500.0,0.00024763,2]
[404648108,1770377522852,-500.0,0.00024763,2]
[404648109,1770377522880,-250.0,0.00024763,2]
[404648110,1770377522907,-250.0,0.00024763,2]
[404648111,1770377522935,-250.0,0.00024763,2]
[404648112,1770377522961,-250.0,0.00024763,2]
[404648113,1770377522987,-250.0,0.00024763,2]
[404648114,1770377523014,-250.0,0.00024763,2]
[404648115,1770377523042,-250.0,0.00024763,2]
[404648116,1770377523070,-250.0,0.00024763,2]
[404648117,1770377523100,-250.0,0.00024763,2]
[404648118,1770377528538,-500.0,0.00024763,2]
[404648119,1770377528568,-250.0,0.00024763,2]
[404648120,1770377528597,-500.0,0.00024763,2]
[404648121,1770377528625,-250.0,0.00024763,2]
[404648122,1770377528653,-500.0,0.00024763,2]
[404648123,1770377528810,-188.003086,0.00024763,2]
[404648124,1770377528842,-500.0,0.00024763,2]
[404648125,1770377528873,-500.0,0.00024763,2]
[404648126,1770377528903,-500.0,0.00024763,2]
[404648127,1770377528936,-500.0,0.00024763,2]
[404648128,1770377528969,-500.0,0.00024763,2]
[404648129,1770377528999,-124.003828,0.00024763,2]
[404648130,1770377531780,-375.996172,0.00024763,2]
[404648131,1770377531808,-500.0,0.00024763,2]
[404648132,1770377531837,-500.0,0.00024763,2]
[404648133,1770377531865,-500.0,0.00024763,2]
[404648134,1770377531893,-500.0,0.00024763,2]
[404648135,1770377531921,-500.0,0.00024763,2]
[404648136,1770377532216,-3629.04408563,0.00024764,2]
[404648137,1770377532255,-2741.92182874,0.00024764,2]
[404648138,1770377532284,-177.94852359,0.00024767,2]
[404648139,1770377532314,-319.98703511,0.00024767,2]
[404648140,1770377532341,-170.6045,0.00024768,2]
[404648141,1770377532513,-4313.01,0.00025,2]
[404648142,1770377532663,-1373.99,0.00025,2]
[404648143,1770377532672,-1542.6243168,0.00025158,2]
[404648144,1770377532682,-177.0,0.00025173,2]
[404648145,1770377532692,-186.55516035,0.00025203,2]
[404648146,1770377534892,-532.44483965,0.00025203,2]
[404648147,1770377534921,-179.0,0.00025203,2]
[404648148,1770377534951,-774.85733753,0.0002524,2]
[404648149,1770377534983,-300.0,0.00025258,10]
[404648150,1770377535015,-300.0,0.00025258,10]
[404648151,1770377535048,-300.0,0.00025258,10]
[404648152,1770377535083,-300.0,0.00025258,10]
[404648153,1770377535114,-300.0,0.00025258,10]
[404648154,1770377535145,-300.0,0.00025258,10]
[404648155,1770377535307,-300.0,0.00025258,10]
[404648156,1770377535337,-300.0,0.00025258,10]
[404648157,1770377535366,-300.0,0.00025258,10]
[404648158,1770377535396,-300.0,0.00025258,10]
[404648159,1770377535425,-300.0,0.00025258,10]
[404648160,1770377535456,-127.40564564,0.00025258,10]
[404648161,1770377535490,-172.59435436,0.00025258,10]
[404648162,1770377535519,-300.0,0.00025258,10]
[404648163,1770377535548,-300.0,0.00025258,10]
[404648164,1770377535578,-300.0,0.00025258,10]
[404648165,1770377535605,-250.26,0.00025364,2]
[404648166,1770377535633,-202.49763116,0.00025887,2]
[404648167,1770377535662,-1949.30602896,0.00026,2]
[404648168,1770377535773,-3050.69397104,0.00026,2]
[404648169,1770377535813,-500.000001,0.00026,2]
[404648170,1770377535840,-200.0,0.00026,7]
[404648171,1770377535868,-431.10858888,0.00026002,2]
[404648172,1770377535895,-500.0,0.00026002,2]
[404648173,1770377535924,-136.40487816,0.00026002,2]
[404648174,1770377536012,-363.59512184,0.00026002,2]
[404648175,1770377536039,-458.88825288,0.00026002,2]
[404648176,1770377536375,-663.19475944,0.00026003,2]
[404648177,1770377536389,-500.000001,0.00026003,2]
[404648178,1770377536403,-200.0,0.00026003,2]
[404648179,1770377536419,-431.10858888,0.00026003,2]
[404648180,1770377536434,-500.0,0.00026003,2]
[404648181,1770377536448,-500.0,0.00026003,2]
[404648182,1770377536463,-363.59512184,0.00026003,2]
[404648183,1770377536513,-458.88825288,0.00026003,2]
[404648184,1770377536575,-5178.64589746,0.00026003,2]
[404648185,1770377536585,-1943.4609223,0.00026003,2]
[404648186,1770377536594,-1232.9364308,0.00026027,2]
[404648187,1770377537939,-106.1435692,0.00026027,2]
[404648188,1770377537966,-1339.08,0.00026027,2]
[404648189,1770377537993,-1339.08,0.00026043,2]
[404648190,1770377538021,-1339.08,0.00026043,2]
[404648191,1770377538050,-414.1628616,0.00026045,2]
[404648192,1770377538122,-924.9171384,0.00026045,2]
[404648193,1770377538595,177.94852359,0.00023528,2]
[404648194,1770377541534,319.98703511,0.00023528,2]
[404648195,1770377546954,-9502.0744413,0.00026045,2]
[404648197,1770377584051,500.0,0.00013699,2]
[404648198,1770377584117,482.23150023,0.00014247,2]
[404648199,1770377587989,2708.02,0.00022263,30]
[404648200,1770377596347,-530.25433095,0.0002363,2]
[404648201,1770377596377,-954.45779571,0.00024546,2]
[404648202,1770377596405,-1614.54574668,0.00024649,30]
[404648203,1770377596626,-111.24275309,0.00024649,30]
[404648204,1770377602233,-5000.0,0.00024953,2]
[404648205,1770377648154,61550.0,0.00030137,120]
[404648211,1770377823145,200.08677419,0.00013699,2]
[404648218,1770377927324,5158.0,0.00030136,120]
[404648220,1770377946557,150.09207651,0.00016438,2]
[404648263,1770378394069,5000.0,0.00023156,2]
[404648268,1770378452483,10000.0,0.00014,30]
[404648269,1770378459588,0.01,0.00014,30]
[404648270,1770378459609,9999.99,0.00014,30]
[404648271,1770378468124,0.02,0.00014,30]
[404648272,1770378468146,9999.98,0.00014,30]
[404648273,1770378478985,4265.6,0.00014,30]
[404648319,1770378632235,-572.62277611,0.00023168,2]
[404648324,1770378638212,-4427.37722389,0.00023168,2]
[404648326,1770378638222,-150.0,0.0002328,2]
[404648327,1770378638232,-475.15450302,0.00023392,2]
[404648328,1770378638242,-300.0,0.00023401,2]
[404648329,1770378638252,-6059.92949884,0.00023402,2]
[404648330,1770378638263,-396.68544989,0.00023402,2]
[404648331,1770378638272,-452.90144508,0.00023402,2]
[404648332,1770378638282,-416.17636651,0.00023402,2]
[404648333,1770378638292,-285.28788532,0.00023511,2]
[404648334,1770378638301,-299.30534522,0.00023511,2]
[404648335,1770378638311,-177.096334,0.00024353,2]
[404648336,1770378638320,-262.1,0.00024455,2]
[404648337,1770378638330,-1539.13056623,0.0002472,2]
[404648338,1770378638340,-10137.8262586,0.00024805,2]
[404648339,1770378638350,-262.1,0.00025189,2]
[404648340,1770378638360,-177.0,0.0002528,2]
[404648341,1770378638373,-720.0,0.00025332,2]
[404648342,1770378638383,-179.0,0.00025332,2]
[404648343,1770378638393,-420.0,0.00025393,2]
[404648344,1770378638403,-9604.5666369,0.00025727,2]
[404648345,1770378638414,-4483.0011551,0.00025727,2]
[404648346,1770378638423,-395.44027882,0.0002593,2]
[404648347,1770378638433,-711.79250187,0.0002593,2]
[404648348,1770378638443,-1265.40889222,0.0002593,2]
[404648349,1770378638455,-192.25719126,0.00025941,2]
[404648350,1770378638465,-1696.81385904,0.00025941,2]
[404648351,1770378638475,-2651.27165475,0.00025941,2]
[404648352,1770378638484,-223.0021481,0.00025941,2]
[404648353,1770378638494,-401.40386658,0.00025941,2]
[404648354,1770378638504,-713.60687392,0.00025941,2]
[404648355,1770378638514,-262.1,0.00025945,2]
[404648356,1770378638524,-168.13,0.00025961,7]
[404648357,1770378638533,-300.0,0.00025969,10]
[404648358,1770378638545,-300.0,0.00025969,10]
[404648359,1770378638555,-300.0,0.00025969,10]
[404648360,1770378638565,-300.0,0.00025969,10]
[404648361,1770378638575,-300.0,0.00025969,10]
[404648362,1770378638584,-300.0,0.00025969,10]
[404648363,1770378638594,-300.0,0.00025969,10]
[404648364,1770378638604,-300.0,0.00025969,10]
[404648365,1770378638614,-300.0,0.00025969,10]
[404648366,1770378638624,-300.0,0.00025969,10]
[404648367,1770378638634,-300.0,0.00025969,10]
[404648368,1770378638645,-300.0,0.00025969,10]
[404648369,1770378638654,-300.0,0.00025969,10]
[404648370,1770378638663,-300.0,0.00025969,10]
[404648371,1770378638672,-300.0,0.00025969,10]
[404648372,1770378638682,-215.95,0.0002597,10]
[404648373,1770378638692,-250.0,0.00025974,2]
[404648374,1770378638703,-250.0,0.00025974,2]
[404648375,1770378638713,-250.0,0.00025974,2]
[404648376,1770378638723,-500.0,0.00025974,2]
[404648377,1770378638732,-250.0,0.00025974,2]
[404648378,1770378638743,-500.0,0.00025974,2]
[404648379,1770378638752,-250.0,0.00025974,2]
[404648380,1770378638762,-250.0,0.00025974,2]
[404648381,1770378638772,-500.0,0.00025974,2]
[404648382,1770378638782,-250.0,0.00025974,2]
[404648383,1770378638791,-250.0,0.00025974,2]
[404648384,1770378638801,-250.0,0.00025974,2]
[404648385,1770378638811,-500.0,0.00025974,2]
[404648386,1770378638821,-250.0,0.00025974,2]
[404648387,1770378638830,-250.0,0.00025974,2]
[404648388,1770378638840,-500.0,0.00025974,2]
[404648389,1770378638850,-250.0,0.00025974,2]
[404648390,1770378638861,-250.0,0.00025974,2]
[404648391,1770378638870,-250.0,0.00025974,2]
[404648392,1770378638880,-500.0,0.00025974,2]
[404648393,1770378638891,-250.0,0.00025974,2]
[404648394,1770378638901,-250.0,0.00025974,2]
[404648395,1770378638910,-250.0,0.00025974,2]
[404648396,1770378638920,-250.0,0.00025974,2]
[404648397,1770378638930,-500.0,0.00025974,2]
[404648398,1770378638940,-250.0,0.00025974,2]
[404648399,1770378638949,-500.0,0.00025974,2]
[404648400,1770378638960,-250.0,0.00025974,2]
[404648401,1770378638970,-250.0,0.00025974,2]
[404648402,1770378638981,-500.0,0.00025974,2]
[404648403,1770378638994,-250.0,0.00025974,2]
[404648404,1770378639005,-500.0,0.00025974,2]
[404648405,1770378639017,-250.0,0.00025974,2]
[404648406,1770378639029,-250.0,0.00025974,2]
[404648407,1770378639040,-500.0,0.00025974,2]
[404648408,1770378639051,-250.0,0.00025974,2]
[404648409,1770378639253,-500.0,0.00025974,2]
[404648410,1770378639265,-250.0,0.00025974,2]
[404648411,1770378639276,-250.0,0.00025974,2]
[404648412,1770378639287,-500.0,0.00025974,2]
[404648413,1770378639296,-250.0,0.00025974,2]
[404648414,1770378639306,-500.0,0.00025974,2]
[404648415,1770378639316,-250.0,0.00025974,2]
[404648416,1770378639326,-500.0,0.00025974,2]
[404648417,1770378639335,-250.0,0.00025974,2]
[404648418,1770378639345,-500.0,0.00025974,2]
[404648419,1770378639354,-250.0,0.00025974,2]
[404648420,1770378639364,-250.0,0.00025974,2]
[404648421,1770378639375,-500.0,0.00025974,2]
[404648422,1770378639389,-250.0,0.00025974,2]
[404648423,1770378639398,-250.0,0.00025974,2]
[404648424,1770378639408,-500.0,0.00025974,2]
[404648425,1770378639419,-250.0,0.00025974,2]
[404648426,1770378639429,-500.0,0.00025974,2]
[404648427,1770378639439,-250.0,0.00025974,2]
[404648428,1770378639450,-500.0,0.00025974,2]
[404648429,1770378639459,-250.0,0.00025974,2]
[404648430,1770378639469,-500.0,0.00025974,2]
[404648431,1770378639479,-250.0,0.00025974,2]
[404648432,1770378639488,-500.0,0.00025974,2]
[404648433,1770378639497,-250.0,0.00025974,2]
[404648434,1770378639507,-250.0,0.00025974,2]
[404648435,1770378639516,-250.0,0.00025974,2]
[404648436,1770378639526,-250.0,0.00025974,2]
[404648437,1770378639537,-250.0,0.00025974,2]
[404648438,1770378639548,-250.0,0.00025974,2]
[404648439,1770378639557,-500.0,0.00025974,2]
[404648440,1770378639568,-500.0,0.00025974,2]
[404648441,1770378639578,-500.0,0.00025977,2]
[404648442,1770378639588,-988.77332054,0.00025977,2]
[404648443,1770378639597,-162.09869476,0.00025977,2]
[404648444,1770378639607,-500.0,0.00025977,2]
[404648445,1770378639617,-513.59477483,0.00025977,2]
[404648446,1770378639627,-500.0,0.00025977,2]
[404648447,1770378639637,-500.0,0.00025977,2]
[404648448,1770378639647,-500.0,0.00025977,2]
[404648449,1770378639657,-500.0,0.00025977,2]
[404648450,1770378639667,-500.0,0.00025977,2]
[404648451,1770378639676,-500.0,0.00025977,2]
[404648452,1770378639686,-551.5698398,0.00025977,2]
[404648453,1770378639695,-500.0,0.00025977,2]
[404648454,1770378639706,-500.0,0.00025977,2]
[404648455,1770378639717,-500.0,0.00025977,2]
[404648456,1770378639726,-500.0,0.00025977,2]
[404648457,1770378639736,-500.0,0.00025977,2]
[404648458,1770378639746,-500.0,0.00025977,2]
[404648459,1770378639757,-500.0,0.00025977,2]
[404648460,1770378639767,-500.0,0.00025977,2]
[404648461,1770378639777,-500.0,0.00025977,2]
[404648462,1770378639787,-500.0,0.00025977,2]
[404648463,1770378639799,-500.0,0.00025977,2]
[404648464,1770378639811,-500.0,0.00025977,2]
[404648465,1770378639822,-195.87585943,0.00025977,2]
[404648466,1770378639832,-500.0,0.00025977,2]
[404648467,1770378639842,-500.0,0.00025977,2]
[404648468,1770378639851,-500.0,0.00025977,2]
[404648469,1770378639861,-151.0,0.00025978,7]
[404648470,1770378639870,-760.5,0.0002598,3]
[404648471,1770378639879,-380.25,0.0002598,3]
[404648472,1770378639890,-190.12,0.0002598,3]
[404648473,1770378639900,-570.4,0.0002598,3]
[404648474,1770378639909,-151.0,0.0002598,7]
[404648475,1770378639919,-151.0,0.0002598,7]
[404648476,1770378639928,-151.0,0.0002598,7]
[404648477,1770378639938,-37509.0617111,0.0002598,2]
[404648478,1770378639948,-509.1,0.00025989,2]
[404648479,1770378639957,-364.8250269,0.00025989,2]
[404648480,1770378639967,-347.21,0.0002599,2]
[404648481,1770378639976,-151.0,0.0002599,7]
[404648482,1770378639985,-151.0,0.0002599,7]
[404648483,1770378639995,-151.0,0.0002599,7]
[404648486,1770378640008,-18754.5308556,0.00026019,2]
[404648488,1770378640018,-1060.11,0.00026027,2]
[404648489,1770378640028,-1060.11,0.00026027,2]
[404648490,1770378640039,-1060.11,0.00026027,2]
[404648491,1770378640048,-1060.11,0.00026027,2]
[404648492,1770378640057,-1060.11,0.00026027,2]
[404648493,1770378640067,-1060.11,0.00026027,2]
[404648494,1770378640077,-1060.11,0.00026027,2]
[404648496,1770378640086,-1060.11,0.00026027,2]
[404648497,1770378640095,-1060.11,0.00026027,2]
[404648499,1770378640106,-1060.11,0.00026027,2]
[404648501,1770378640115,-1060.11,0.00026027,2]
[404648502,1770378640126,-1060.11,0.00026027,2]
[404648503,1770378640137,-1060.11,0.00026027,2]
[404648504,1770378640146,-151.0,0.00026029,7]
[404648505,1770378640156,-151.0,0.00026029,7]
[404648506,1770378640166,-151.0,0.00026029,7]
[404648507,1770378640175,-1060.11,0.00026043,2]
[404648508,1770378640184,-1060.11,0.00026044,2]
[404648509,1770378640194,-1060.11,0.00026045,2]
[404648510,1770378640203,-175.98691572,0.00026051,3]
[404648511,1770378640213,-745.01017604,0.00026055,7]
[404648512,1770378640222,-1060.11,0.00026057,2]
[404648513,1770378640231,-151.0,0.0002606,7]
[404648514,1770378640240,-151.0,0.0002606,7]
[404648515,1770378640249,-191.140554,0.0002606,7]
[404648516,1770378640259,-1060.11,0.0002606,2]
[404648518,1770378640268,-1060.11,0.0002606,2]
[404648519,1770378640278,-37509.0617111,0.00026061,2]
[404648520,1770378640287,-151.0,0.00026061,7]
[404648521,1770378640296,-151.0,0.00026061,7]
[404648522,1770378640306,-178.97838083,0.00026062,3]
[404648523,1770378640317,-1060.11,0.00026063,2]
[404648524,1770378640326,-1060.11,0.00026063,2]
[404648525,1770378640336,-1060.11,0.00026063,2]
[404648526,1770378640345,-1060.11,0.00026063,2]
[404648527,1770378640354,-1060.1658201,0.00026063,2]
[404648528,1770378640364,-5000.0,0.0002607,2]
[404648530,1770378640376,-89068.92823865,0.00026071,2]
[404648532,1770378640388,-25288.00570349,0.00026074,2]
[404648534,1770378640397,-693.0,0.000261,14]
[404648536,1770378640406,-195.29,0.000261,7]
[404648538,1770378640417,-151.0,0.000261,18]
[404648540,1770378640427,-2122.36,0.000261,2]
[404648542,1770378640436,-154.898,0.000262,12]
[404648544,1770378640445,-151.0,0.000264,19]
[404648546,1770378640455,-736.0,0.000264,10]
[404648548,1770378640464,-600.0,0.00026487,30]
[404648549,1770378640474,-420.13643656,0.00026654,7]
[404648550,1770378640482,-151.0,0.000267,14]
[404648551,1770378640491,-151.0,0.000269,18]
[404648552,1770378640500,-168.0,0.00026937,2]
[404648553,1770378640509,-168.0,0.00026969,2]
[404648554,1770378640518,-151.0,0.000272,16]
[404648555,1770378640527,-204.0,0.0002728,2]
[404648556,1770378640536,-1521.0,0.0002735,3]
[404648557,1770378640545,-760.5,0.0002735,3]
[404648558,1770378640554,-380.24,0.0002735,3]
[404648559,1770378640563,-500.0,0.00027397,5]
[404648560,1770378640572,-155.04353192,0.00027397,5]
[404648561,1770378640581,-18754.5308556,0.0002749,2]
[404648562,1770378640590,-551.05,0.0002749,2]
[404648563,1770378640599,-551.05,0.0002749,2]
[404648564,1770378640608,-551.05,0.0002749,2]
[404648565,1770378640617,-551.05,0.0002749,2]
[404648566,1770378640626,-970.62,0.0002749,2]
[404648567,1770378640637,-14104.33537191,0.000275,2]
[404648568,1770378640647,-151.0,0.000275,17]
[404648569,1770378640656,-182.0,0.00027562,14]
[404648570,1770378640665,-345.71688133,0.00027586,2]
[404648572,1770378640674,-168.0,0.00027614,2]
[404648573,1770378640684,-1002.563705,0.00027739,2]
[404648575,1770378640693,-1000.0,0.00027777,5]
[404648578,1770378640703,-151.0,0.000278,20]